Cogmind - Beta 16 @@@ ROGUE MODE // 2025.12.03 @ 15:12:11 Player: Mozco Result: Destroyed by YI-UF0 with YI-UF0's Doublenader Performance ------------- Evolutions (0) 0 Regions Visited (2) 400 Robots Destroyed (38) 190 Value Destroyed (573) 573 Prototype IDs (0) 0 Alien Tech Used (0) 0 Bonus (-130) -130 TOTAL SCORE: 1033 Bonus ------- Friendly Fire -130 Cogmind --------- Core Integrity 0/250 Matter 255/300 Energy 100/100 System Corruption 1% Temperature Cool (0) Movement Rolling (140) Ox4 Location -10/Mines Parts ------- > --- POWER (1) -------- (None) > --- PROPULSION (2) --- Wheel > --- UTILITY (2) ------ Improved Heat Sink High-capacity Storage Unit > --- WEAPON (2) ------- Autogun > --- INVENTORY (20) --- Light Ion Engine Wheel Wheel Wheel Compact Wheel Compact Wheel Improved Heat Sink Structural Scanner Experimental Sensor Array Improved Terrain Scanner Hacking Suite Particle Cannon Particle Cannon Particle Cannon Autogun Autogun EMP Blaster EMP Blaster Peak State ------------ > --- POWER ------------ Ion Engine > --- PROPULSION ------- Wheel Wheel > --- UTILITY ---------- Improved Heat Sink High-capacity Storage Unit > --- WEAPON ----------- Autogun EMP Blaster > --- INVENTORY -------- Light Ion Engine Wheel Wheel Wheel Compact Wheel Compact Wheel Improved Heat Sink Structural Scanner Experimental Sensor Array Improved Terrain Scanner Hacking Suite Particle Cannon Particle Cannon Particle Cannon Autogun Autogun Autogun EMP Blaster EMP Blaster [Rating: 15] Favorites ----------- Power Ion Engine Engine Ion Engine Propulsion Compact Wheel Wheel Compact Wheel Utility High-capacity Storage Unit Device Heat Sink Storage High-capacity Storage Unit Weapon Particle Cannon Energy Gun Small Laser Energy Cannon Particle Cannon Ballistic Gun Light Assault Rifle Launcher EMP Blaster Build | -11 -10 -10 ------- Run | Yrd Mat Min Slots Evolved . | . . . Power . | . . . Propulsion . | . . . Utility . | . . . Weapon . | . . . Parts Attached 23 | 7 11 5 Power 2 | 1 1 . Engine 2 | 1 1 . Core . | . . . Reactor . | . . . Propulsion 6 | 2 4 . Treads . | . . . Leg . | . . . Wheel 6 | 2 4 . Hover . | . . . Flight . | . . . Utility 6 | 2 3 1 Device 3 | 1 1 1 Storage 3 | 1 2 . Processor . | . . . Hackware . | . . . Protection . | . . . Artifact . | . . . Weapon 9 | 2 3 4 Energy Gun 2 | 1 1 . Energy Cannon 2 | . 2 . Ballistic Gun 3 | 1 . 2 Ballistic Cannon . | . . . Launcher 2 | . . 2 Special Weapon . | . . . Impact Weapon . | . . . Slashing Weapon . | . . . Piercing Weapon . | . . . Special Melee Weapon . | . . . Unidentified Prototypes . | . . . Parts Lost 9 | . 4 5 Power 2 | . 1 1 Propulsion 3 | . 2 1 Utility 1 | . 1 . Weapon 3 | . . 3 Highest Loss Streak 5 | . 2 5 To Critical Strikes 1 | . 1 . Average Backups 15 | 2 14 19 Power 1 | . 1 1 Propulsion 3 | . 3 5 Utility 3 | . 3 4 Weapon 6 | 1 6 9 Tool/Special . | . . . Unused Backups 23 | 1 5 17 Power 1 | . . 1 Propulsion 5 | 1 . 4 Utility 6 | . . 6 Weapon 11 | . 5 6 Tool/Special . | . . . Average Slot Usage (%) 99 | . 99 98 Engine 13 | . 13 13 Wheel 27 | . 28 27 Device 13 | . 13 14 Storage 14 | . 14 14 Energy Gun 9 | . 7 13 Energy Cannon 11 | . 12 8 Ballistic Gun 5 | . 7 . Launcher 1 | . . 5 Peak Build Rating 15 | 9 12 15 Average Rating 10 | 5 10 12 On Entrance 6 | . 9 11 Avg Prop Armor Cover (%) . | . . . Naked Turns . | . . . Heaviest Build 54 | 13 54 52 Greatest Support 32 | 32 32 20 Greatest Overweight (x) 2 | . 2 2 Average Overweight (x) 1 | . 1 2 Largest Inventory Capacity 20 | 8 20 20 Average Capacity 17 | 7 17 20 Most Carried 20 | 5 20 20 Average Carried 15 | 2 15 19 Final Capacity 20 | 8 20 20 Final Carried 20 | 4 20 18 Class Distribution -------------------- 72% | Mutant 27% | Scavenger-Mutant Dominant Class ---------------- Mutant | -10/Materials Scavenger-Mutant | -10/Mines Resources | -11 -10 -10 ----------- Run | Yrd Mat Min Matter Collected 474 | 275 171 28 Remotely . | . . . Salvage Created 1157 | 117 821 219 Parts 87 | 8 64 15 Haulers Intercepted 2 | . 2 . Recyclers Shooed 3 | . 1 2 Parts Field Recycled . | . . . Retrieved Matter . | . . . Parts Self-Destructed . | . . . Prevented . | . . . Parts Restored . | . . . Kills | -11 -10 -10 ------- Run | Yrd Mat Min Combat Hostiles Destroyed 19 | . 15 4 Guns 13 | . 12 1 Cannons 3 | . 2 1 AOE 2 | . . 2 Classes Destroyed 9 | 2 7 . Worker 4 | . 4 . Builder 3 | . 2 1 Tunneler 4 | 2 2 . Hauler 2 | . 2 . Recycler 3 | 1 2 . Operator 2 | . 2 . Watcher 1 | . 1 . Swarmer 9 | . 9 . Grunt 10 | . 6 4 Best Kill Streak 6 | 3 6 2 Combat Bots Only 3 | . 3 2 Max Kills in Single Turn 1 | 1 1 1 Gunslinging . | . . . Exploded 1 | . . 1 Melee . | . . . Uniques/NPCs Destroyed . | . . . Combat | -11 -10 -10 -------- Run | Yrd Mat Min Hostile Shots Fired 113 | . 90 23 Missed 29 | . 19 10 Hits 84 | . 71 13 Projectile 84 | . 71 13 AOE 16 | . . 16 Critical Strikes 1 | . 1 . Damage Taken 1149 | . 590 559 Core 255 | . 110 145 Absorbed by Shields . | . . . Core Remaining (%) 100 | 100 . . Volleys Fired 107 | 5 81 21 Largest 2 | 2 2 2 Hottest 136 | 60 136 108 Shots Fired 199 | 10 157 32 Gun 157 | 10 127 20 Cannon 36 | . 30 6 Launcher 6 | . . 6 Special . | . . . Kinetic 74 | 5 63 6 Thermal 104 | 5 93 6 Explosive . | . . . Electromagnetic 21 | . 1 20 Robot Hit Streak 14 | 4 10 14 Robot Miss Streak 5 | 1 5 3 Penetration Max . | . . . Secondary Targets 2 | . 2 . Max Gunslinging Chain 1 | . 1 . Shots Hit Robots 120 | 6 93 21 Core Hits 57 | 4 44 9 Critical Kills 1 | . 1 . Critical Parts Destroyed . | . . . Critical Strikes 1 | . 1 . Meltdown 1 | . 1 . Melee Attacks . | . . . Impact . | . . . Slashing . | . . . Piercing . | . . . Sneak Attacks . | . . . Combat Hostiles . | . . . Follow-up Attacks . | . . . Damage Inflicted 1645 | 60 1117 468 Guns 1105 | 60 820 225 Cannons 358 | . 297 61 Explosions 182 | . . 182 Melee . | . . . Ramming . | . . . Kinetic 347 | 15 286 46 Thermal 986 | 45 816 125 Explosive . | . . . Electromagnetic 312 | . 15 297 Impact . | . . . Slashing . | . . . Piercing . | . . . Highest Corruption 1 | . 1 1 Average Corruption 1 | . 1 1 Corruption Purged . | . . . Corruption Blocked . | . . . Effects 10 | . 7 3 Message Errors 3 | . 3 . Matter Fused 2 | . 2 . Data Loss (minor) 3 | . 1 2 Data Loss (major) 1 | . . 1 Alerts 1 | . 1 . Overload Shots . | . . . Overflow Damage 19 | . 5 14 Projectiles 5 | . 5 . Explosions 14 | . . 14 Melee . | . . . Knockbacks . | . . . Impact . | . . . Kinetic . | . . . Secondary . | . . . Self-Inflicted Damage . | . . . Shots . | . . . Rammed . | . . . Targets Rammed . | . . . Kicked . | . . . Crushed . | . . . Highest Temperature 245 | 20 245 126 Average Temperature 49 | 15 51 53 Received Heat Transfer 108 | . 72 36 Siege Activations . | . . . Martial Activations . | . . . Shielding Activations . | . . . Robots Disrupted . | . . . Combat Hostiles . | . . . Robots Corrupted . | . . . Combat Hostiles . | . . . Parts Fried . | . . . Impact Corruptions . | . . . Robots Melted 1 | . 1 . Combat Hostiles 1 | . 1 . Parts Melted 2 | . 1 1 Heat Transferred 1979 | 100 1668 211 Parts Sabotaged . | . . . Parts Stolen . | . . . Parts Stripped . | . . . Power Chain Reactions 2 | . . 2 Alert | -11 -10 -10 ------- Run | Yrd Mat Min Maximum Alert Level . | . . . Low Security (%) 100 | 100 100 100 Level 1 . | . . . Level 2 . | . . . Level 3 . | . . . Level 4 . | . . . Level 5 . | . . . High Security . | . . . Max Security . | . . . Peak Influence 165 | 5 165 59 Initial 16 | . . 16 Average 73 | . 98 14 Influence Increases 666 | 15 537 114 Destroy 0b10 Robot/C 380 | . 300 80 Destroy 0b10 Robot/NC 95 | 15 75 5 Destroy Leader 86 | . 66 20 Successful Hack 20 | . 20 . Select Force Hacks 30 | . 30 . Destroy Structure 10 | . 1 9 Lose Combat Pursuer 45 | . 45 . Influence Decreases 666 | 15 494 157 Entered New Map 27 | . . 27 Time Decay 599 | 15 454 130 Lost Part 40 | . 40 . Squads Dispatched 6 | . 6 . Investigation 4 | . 4 . Extermination . | . . . Reinforcement 2 | . 2 . Assault . | . . . Garrison . | . . . Intercept . | . . . Searches Triggered . | . . . Construction Impeded . | . . . Haulers Reinforced . | . . . Active Scanning Responses . | . . . Cargo Convoy Interrupts . | . . . Stealth | -11 -10 -10 --------- Run | Yrd Mat Min Distress Signals 3 | . 3 . Communications Jammed . | . . . Distress Signals . | . . . Times Spotted 30 | . 25 5 Peak Tracking Total 6 | . 6 2 Tactical Retreats 2 | . 2 . Traps | -11 -10 -10 ------- Run | Yrd Mat Min Traps Triggered 2 | . 2 . Indirectly . | . . . Trap Hack Attempts . | . . . Triggered . | . . . Disarmed . | . . . Reprogrammed . | . . . Reused . | . . . Traps Extracted . | . . . Installed . | . . . Triggered . | . . . Machines | -11 -10 -10 ---------- Run | Yrd Mat Min Machines Disabled . | . . . Max in Single Turn . | . . . Machines Repaired . | . . . Machines Dismantled . | . . . Machines Sabotaged . | . . . Overloaded Fab Kills . | . . . Hacking | -11 -10 -10 --------- Run | Yrd Mat Min Machines Accessed 5 | . 5 . Terminals 4 | . 4 . Fabricators . | . . . Repair Stations . | . . . Recycling Units 1 | . 1 . Scanalyzers . | . . . Garrison Access . | . . . Total Hacks 15 | . 15 . Successful 8 | . 8 . Failed 6 | . 6 . Catastrophic 1 | . 1 . Database Lockouts 1 | . 1 . Manual 17 | . 17 . Terminals 14 | . 14 . Fabricators . | . . . Repair Stations . | . . . Recycling Units 1 | . 1 . Scanalyzers . | . . . Garrison Access . | . . . Terminal Hacks 4 | . 4 . Robot Analysis 4 | . 4 . Fabricator Hacks . | . . . Repair Station Hacks . | . . . Recycling Unit Hacks . | . . . Scanalyzer . | . . . Garrison Access Hacks . | . . . Unauthorized Hacks 4 | . 4 . Terminals 3 | . 3 . Botnet 2 | . 2 . Operators 1 | . 1 . Fabricators . | . . . Repair Stations . | . . . Recycling Units 1 | . 1 . Tunnel 1 | . 1 . Scanalyzers . | . . . Garrison Access . | . . . Data Cores Recovered . | . . . Used . | . . . Hacking Detections 4 | . 4 . Full Trace Events 3 | . 3 . Feedback Events 1 | . 1 . Corruption 1 | . 1 . Feedback Blocked . | . . . Robot Schematics Acquired . | . . . Robots Built . | . . . Authchips . | . . . Time . | . . . Total Robot Build Rating . | . . . Part Schematics Acquired . | . . . Parts Built . | . . . Authchips . | . . . Time . | . . . Total Part Build Rating . | . . . Part Studies Acquired . | . . . Parts Repaired . | . . . Time . | . . . Parts Recycled . | . . . Recycled Matter . | . . . Retrieved Matter . | . . . Retrieved Components . | . . . Parts Scanalyzed . | . . . Part Schematics Acquired . | . . . Parts Damaged . | . . . Bothacking | -11 -10 -10 ------------ Run | Yrd Mat Min Used RIF Installer . | . . . Robots Hacked . | . . . Non-combat . | . . . Combat . | . . . Robot Hacks Applied . | . . . Relay Couplers Released . | . . . Fabnet Peak Effective % . | . . . Robots Rewired . | . . . Allies Hacked . | . . . Hacks Repelled . | . . . Allies | -11 -10 -10 -------- Run | Yrd Mat Min Total Allies . | . . . Largest Group . | . . . Highest-Rated Group . | . . . Highest-Rated Ally . | . . . Total Orders . | . . . Ally Attacks . | . . . Total Damage . | . . . Kills . | . . . Allies Corrupted . | . . . Allies Melted . | . . . Intel | -11 -10 -10 ------- Run | Yrd Mat Min Active Infowar (turns) 508 | 21 487 . Terrain 508 | 21 487 . Robot Analysis Total 4 | . 4 . Derelict Logs Recovered . | . . . Drone Launches . | . . . Drone Recoveries . | . . . Exploration | -11 -10 -10 ------------- Run | Yrd Mat Min Turns Passed 1629 | 88 1163 378 Spaces Moved 1098 | 58 755 285 Core 2 | 2 . . Treads . | . . . Legs . | . . . Wheels 1096 | 56 755 285 Hover . | . . . Flight . | . . . Fastest Speed 50 | 50 100 110 Average Speed 110 | 98 112 110 Slowest Speed 130 | 100 130 110 Overloaded Moves . | . . . Propulsion Burnouts . | . . . Robots Hopped . | . . . Potential Cave-ins . | . . . Cave-ins Triggered . | . . . Exploration Rate (%) 53 | 4 90 66 Regions Visited 2 Branch Regions 1 Pre-discovered Areas 1 | . 1 . Known Exits Taken . | . . . Unknown Exits Taken 2 | 1 1 . Scrap Searched 1 | . . 1 Spaces Dug 9 | . . 9 Terrain Destroyed 9 | . . 9 Melee . | . . . Projectile . | . . . AOE 9 | . . 9 Terrain Rammed . | . . . Walls Destroyed . | . . . Machines Disabled . | . . . Actions | -11 -10 -10 --------- Run | Yrd Mat Min Total 1325 | 77 929 319 Wait 47 | . 44 3 Move 1096 | 57 754 285 Hop . | . . . Pick Up 36 | 7 27 2 Fast Attach 7 | 5 2 . Attach 8 | 2 4 2 Detach . | . . . Swap 8 | . 5 3 Drop 16 | 1 12 3 Fire 107 | 5 81 21 Melee . | . . . Ram . | . . . Kick . | . . . Crush . | . . . Escape Stasis . | . . . Rewire . | . . . Trap . | . . . Miscellaneous . | . . . Route ------- -11/Scrapyard -10/Materials (discovered 5 exits: [*Mat x2] / [*Min x2] / [*Sub]) -10/Mines (discovered 1 exit: [*Mat]) History --------- Turn | Location | Event 8 | -11/Scrapyard | Discovered new exit (range 16) 89 | -11/Scrapyard | Entered Materials 300 | -10/Materials | Build established: Mutant 386 | -10/Materials | Discovered new exit (range 11) 623 | -10/Materials | Discovered new exit (range 4) 653 | -10/Materials | Discovered new exit (range 11) 695 | -10/Materials | Discovered new exit (range 15) 1033 | -10/Materials | Discovered new exit (range 15) 1129 | -10/Materials | Central database locked down 1252 | -10/Materials | Entered Mines 1259 | -10/Mines | Discovered new exit (range 6) 1327 | -10/Mines | Found a damaged Exp. Sensor Array with a note attached 1330 | -10/Mines | Found Prototype Device 1404 | -10/Mines | Core integrity fell below 50% 1473 | -10/Mines | Build established: Scavenger-Mutant 1593 | -10/Mines | Found a hidden stash of uninstalled traps 1627 | -10/Mines | Core integrity fell below 20% 1630 | -10/Mines | Destroyed by YI-UF0 with YI-UF0's Doublenader Last Messages --------------- 01556_ Structural Scanner melted. 01556_ U-05 Engineer destroyed. 01560_ Acquired 28 matter. 01580_ System corrupted: Substantial component data lost. 01581_ K-01 Serf collects debris. 01593_ A stash of uninstalled traps is collected here! 01614_ YI-UF0: "BOOM TO YOU TOO!" 01615_ EM Pulse Gun destroyed. 01618_ Destroyed Shock Absorption System. 01622_ EMP Blaster destroyed. 01624_ YI-UF0: "BOOSH!" 01624_ R-06 Scavenger destroyed. 01624_ Ion Engine destroyed. 01625_ YI-UF0 mumbles something. 01625_ The unstable cave ceiling collapses. 01626_ YI-UF0 mumbles something. 01626_ Wheel destroyed. 01628_ The unstable cave ceiling collapses. 01628_ Autogun destroyed. 01629_ The unstable cave ceiling collapses. Map ----- +----------------------------------------------------+ | #??????????????????????????????#?????????????# # | | *#???????????????????????????????????????????## # | | =#??????????????????????????????????????????## | | %####???????????????????????????????????????# | | # ##??????????????????????????????????????# | | ##???? #??????????????????????????????## | | ## #????????????????????????????????### | | #???????????????????????????????????## | | #??????????????????????????????????????# | | #### #????????????????????????????????????????? | | #????#????????????????????????????????????????? | | # #??????????????#??????????????????????????????? | | # #?????????????? ??????????????????????????????? | | # #?????????????? ??????????????????????????????? | | # #?????????????# #?????????????????????????????? | | #?????????????# #?????????????????????????????? | | #????######???# #?????????????????????????????? | | ####????? #???# #?????????????????????????????? | | #????????? #???# #???????##????????????????????? | | #?????????# #???# #??????? #####????#???????????? | | ########### #???# ######## # #?? #???????????? | | ## #####& ## # # #???????????? | | ## ## ##### & #???????????? | | ## ## #???# g # ??????????????? | | ## ## #???# * #?????????????????? | | ## #???### % @ #?????????????????? | | ##### #???????# ! #????????????????? | | ????# ???? ##????????????????? | | ????# #????## # #?????????????????? | | ????# #???????### #?????????????????? | | ????? ??????????# ######?????????????????? | | ????? ??????????# ##??????????????????????? | | ????? ??????????# ##???????????????????????? | | ????? ?????????# #????????????????????????? | | ????? ???????? #????????????????????????? | | ????? ????????### ????????????????????????? | | ?????#??????????## ????????????????????????? | | ?????????????????### ?????????????????????????? | | ???????????????????### ?????????????????????????? | | ?????????????????????##??????????????????????????? | | ?????????????????????????????????????????????????? | | ?????????????????????????????????????????????????? | | ?????????????????????????????????????????????????? | | ?????????????????????????????????????????????????? | | ?????????????????????????????????????????????????? | | ?????????????????????????????????????????????????? | | | | | | | | | +----------------------------------------------------+ Best States ------------- Heat Dissipation 39 Energy Generation 10 Energy Capacity 250 Matter Stores 300 Matter Capacity 300 Sight Range 16 Terrain Scan Range 16 Terrain Scan Density 10 Evasion (%) 40 Item Schematics ----------------- None Robot Schematics ------------------ None Fabricated ------------ Nothing Repaired ---------- Nothing Studied --------- None Alien Tech Used ----------------- None Achievements -------------- None Challenges ------------ None Game ------ Seed RagnarokKineticDirector Manual? 0 Play Time 00:15:37 Cumulative 374.7 hours Start 2025.12.03 @ 14:56:15 End 2025.12.03 @ 15:12:11 Sessions 1 Manual Loads 0 Difficulty Rogue Special Mode None Game No. 382 Rogue 378 Adventurer 3 Explorer 1 Win Type - Total 5 Types 4/0/1/0/0/0/0/0/0/0 Lore% 85 Gallery% 80 Achievement% 67 Wizard Run 0 Options --------- Layout 0 ASCII 0 Keyboard 0 Movement Mouse Keybinds 0 Fullscreen 2 Font 18/SmallcapsGlow Map View 76x50 Zoom Use 0% Tactical HUD 1 Map Filters NONE Filters NONE Steam 1 RUN: ccccf3d6-93d2-4cb3-b5d8-0f699837972c